bitfinex-derivatives/quotes_SOLF0:USTF0_20250819
["timestamp","ask_amount","ask_price","bid_price","bid_amount"]
[1755591392140,3.09,179.96,179.85,4.61639233]
[1755591392541,3.09,179.96,179.86,3.17]
[1755591392737,3.09,179.96,179.86,13.34389233]
[1755591392943,3.09,179.96,179.86,3.17]
[1755591393445,3.09,179.96,179.86,7.78639233]
[1755591394946,3.09,179.96,179.86,13.34399233]
[1755591395149,3.09,179.96,179.86,4.61639233]
[1755591395350,11.9816501,180.05,179.88,5.5568]
[1755591395541,3.09,180.0,179.89,3.17]
[1755591395847,4.56049008,179.99,179.89,3.17]
[1755591396043,3.09,179.97,179.87,4.61639233]
[1755591396441,3.09,179.97,179.86,3.17]
[1755591396442,3.09,179.97,179.86,7.78639233]
[1755591396645,3.09,179.97,179.86,3.17]
[1755591396844,3.09,179.95,179.86,3.17]
[1755591398558,3.09,179.95,179.86,7.78639233]
[1755591399040,3.09,179.95,179.86,3.17]
[1755591399244,3.09,179.95,179.86,7.78639233]
[1755591399440,3.09,179.99,179.87,3.17]
[1755591399649,4.56277149,179.98,179.88,3.17]
[1755591399952,3.09,180.04,179.91,3.17]
[1755591400254,3.09,180.04,179.92,3.17]
[1755591400255,4.56181619,180.03,179.92,3.17]
[1755591400548,3.09,180.01,179.92,3.17]
[1755591400758,3.09,179.99,179.88,4.61639233]
[1755591400948,3.09,179.99,179.88,7.78639233]
[1755591401148,4.56414882,179.98,179.88,3.17]
[1755591401447,4.56615015,179.97,179.88,3.17]
[1755591401644,3.09,179.99,179.88,3.17]
[1755591401843,4.56639179,179.98,179.88,7.78639233]
[1755591402047,3.09,179.99,179.88,7.78639233]
[1755591402245,4.56621626,179.98,179.88,7.78639233]
[1755591402451,4.56910604,179.97,179.88,7.78639233]
[1755591402749,3.09,179.99,179.88,7.78639233]
[1755591402950,3.09,179.97,179.88,3.17]
[1755591403151,3.09,179.97,179.88,7.78639233]
[1755591403350,4.57177166,179.96,179.88,7.78639233]
[1755591403546,3.09,179.97,179.88,4.61639233]
[1755591403748,4.5719215,179.96,179.87,4.61639233]
[1755591404058,3.09,179.97,179.87,4.61639233]
[1755591404257,4.57192186,179.96,179.88,4.61639233]
[1755591404456,3.09,179.97,179.88,4.61639233]
[1755591404658,4.573132,179.96,179.88,4.61639233]
[1755591404862,4.573132,179.95,179.88,4.61639233]
[1755591405050,3.09,179.97,179.88,4.61639233]
[1755591405247,4.573132,179.96,179.88,4.61639233]
[1755591405455,4.573132,179.95,179.88,4.61639233]
[1755591405658,3.09,179.97,179.88,4.61639233]
[1755591405954,4.57326718,179.96,179.88,4.61639233]
[1755591406252,3.09,179.97,179.88,4.61639233]
[1755591406253,4.57326718,179.95,179.88,4.61639233]
[1755591406556,3.09,179.97,179.88,4.61639233]
[1755591406747,3.09,179.95,179.87,4.61639233]
[1755591406951,4.57339895,179.94,179.87,4.61639233]
[1755591407456,3.09,179.95,179.87,4.61639233]
[1755591409258,3.09,180.0,179.89,4.61639233]
[1755591409448,4.5744439,179.99,179.89,4.61639233]
[1755591409649,4.5744439,179.98,179.89,4.61639233]
[1755591409849,7.6644439,179.97,179.88,7.78639233]
[1755591410057,4.5744439,179.96,179.88,7.78639233]
[1755591410455,3.09,179.95,179.88,4.61639233]
[1755591410655,3.09,179.95,179.87,4.61639233]
[1755591411057,4.57480936,179.94,179.87,4.61639233]
[1755591411362,3.09,179.95,179.87,4.61639233]
[1755591411565,4.57469853,179.94,179.87,4.61639233]
[1755591411763,3.09,179.95,179.87,4.61639233]
[1755591411963,4.57469853,179.94,179.86,4.61639233]
[1755591412165,4.57469853,179.93,179.86,4.61639233]
[1755591412462,3.09,179.95,179.86,4.61639233]
[1755591412658,4.57478706,179.94,179.86,4.61639233]
[1755591412860,4.57478706,179.93,179.87,2.98]
[1755591413059,3.09,179.95,179.87,2.98]
[1755591413358,4.57478706,179.94,179.87,2.98]
[1755591413556,3.09,179.95,179.87,2.98]
[1755591413751,4.57458046,179.94,179.87,2.98]
[1755591413963,3.09,179.95,179.87,2.98]
[1755591414156,4.57458046,179.94,179.87,7.59639233]
[1755591414361,3.09,179.95,179.87,7.59639233]
[1755591414561,4.57507143,179.94,179.87,7.59639233]
[1755591414763,3.09,179.95,179.87,7.59639233]
[1755591415059,2.93,179.98,179.88,2.98]
[1755591415369,4.57494908,179.97,179.89,4.61639233]
[1755591415561,4.57494908,179.96,179.89,4.61639233]
[1755591415758,2.93,179.98,179.89,4.61639233]
[1755591415955,4.57476243,179.97,179.89,4.61639233]
[1755591416160,4.57476243,179.96,179.89,4.61639233]
[1755591416465,2.93,179.98,179.89,4.61639233]
[1755591416767,4.574913,179.97,179.89,4.61639233]
[1755591417065,7.504913,179.96,179.88,7.59639233]
[1755591417261,4.574913,179.95,179.88,7.59639233]
[1755591417659,4.574913,179.95,179.88,2.98]
[1755591418161,4.574913,179.95,179.88,7.59639233]
[1755591418461,4.574913,179.95,179.88,4.61639233]
[1755591418656,7.504913,179.94,179.86,4.61639233]
[1755591418856,4.574913,179.93,179.86,4.61639233]
[1755591419963,2.93,179.96,179.87,4.61639233]
[1755591420264,4.57663565,179.95,179.87,4.61639233]
[1755591420462,4.57663565,179.94,179.87,4.61639233]
[1755591420663,6.2186,180.0,179.87,4.61639233]
[1755591420664,7.50663565,179.93,179.87,4.61639233]
[1755591420964,2.93,179.93,179.86,4.61639233]
[1755591421765,2.93,179.99,179.87,7.59639233]
[1755591421968,2.93,179.97,179.87,7.59639233]
[1755591422158,4.5764806,179.96,179.87,7.59639233]
[1755591422360,4.5764806,179.96,179.88,4.61639233]
[1755591422865,2.93,179.95,179.87,7.59639233]
[1755591423065,4.5764806,179.94,179.87,7.59639233]
[1755591423268,4.5764806,179.94,179.88,4.61639233]
[1755591423668,4.5764806,179.94,179.87,7.59639233]
[1755591423872,2.93,179.95,179.88,4.61639233]
[1755591424065,4.57636632,179.94,179.88,4.61639233]
[1755591424261,2.93,179.95,179.88,4.61639233]
[1755591424465,4.57640566,179.94,179.88,4.61639233]
[1755591424664,2.93,179.95,179.88,4.61639233]
[1755591424867,4.57640398,179.94,179.88,4.61639233]
[1755591425170,2.93,179.95,179.88,4.61639233]
[1755591425371,4.57633933,179.94,179.88,4.61639233]
[1755591425571,2.93,179.95,179.88,4.61639233]
[1755591425873,7.51376202,179.94,179.87,7.59639233]
[1755591426061,2.93,179.94,179.87,7.59639233]
[1755591426773,2.93,179.99,179.87,7.59639233]
[1755591427072,7.25254541,179.98,179.88,4.61639233]
[1755591427268,4.58393971,179.97,179.88,4.61639233]
[1755591427468,4.58393971,179.96,179.88,4.61639233]
[1755591427669,4.58393971,179.95,179.88,4.61639233]
[1755591427868,4.58393971,179.94,179.88,4.61639233]
[1755591428066,2.93,179.99,179.88,4.61639233]
[1755591428270,7.25224632,179.98,179.88,4.61639233]
[1755591428469,2.93,179.99,179.88,4.61639233]
[1755591428470,4.58373887,179.97,179.88,4.61639233]
[1755591428673,4.58373887,179.96,179.88,4.61639233]
[1755591428874,4.58373887,179.95,179.88,4.61639233]
[1755591429073,4.58373887,179.94,179.88,4.61639233]
[1755591429277,2.93,179.99,179.88,4.61639233]
[1755591429573,7.25269317,179.98,179.88,4.61639233]
[1755591429775,4.5840213,179.97,179.88,4.61639233]
[1755591429975,4.5840213,179.96,179.88,4.61639233]
[1755591430174,4.5840213,179.95,179.88,4.61639233]
[1755591430374,4.5840213,179.94,179.88,4.61639233]
[1755591430575,2.93,179.99,179.88,4.61639233]
[1755591430774,2.93,179.97,179.88,4.61639233]
[1755591430977,4.58404678,179.96,179.88,4.61639233]
[1755591431173,4.58404678,179.95,179.88,4.61639233]
[1755591431375,4.58404678,179.94,179.88,4.61639233]
[1755591431574,2.93,179.97,179.88,4.61639233]
[1755591431874,4.58404623,179.96,179.88,4.61639233]
[1755591432076,4.58404623,179.95,179.88,4.61639233]
[1755591432276,4.58404623,179.94,179.88,4.61639233]
[1755591432477,2.93,179.97,179.88,4.61639233]
[1755591432678,4.58415973,179.96,179.88,4.61639233]
[1755591432980,4.58415973,179.95,179.88,4.61639233]
[1755591433281,2.93,179.97,179.88,4.61639233]
[1755591433282,4.58415973,179.94,179.88,4.61639233]
[1755591433483,2.93,179.97,179.88,4.61639233]
[1755591433676,4.5842889,179.96,179.88,4.61639233]
[1755591433876,2.93,179.94,179.88,4.61639233]
[1755591434077,4.58464465,179.93,179.87,4.61639233]
[1755591434276,2.93,179.94,179.87,4.61639233]
[1755591434478,4.58601137,179.93,179.87,4.61639233]
[1755591434678,2.93,179.94,179.87,4.61639233]
[1755591434981,4.58601137,179.93,179.87,4.61639233]
[1755591435182,2.93,179.94,179.87,4.61639233]
[1755591435373,4.58660902,179.93,179.87,4.61639233]
[1755591435573,2.93,179.94,179.87,4.61639233]
[1755591435574,3.70588202,179.91,179.87,4.61639233]
[1755591435778,7.51705415,179.9,179.83,4.61639233]
[1755591435987,4.58705415,179.89,179.83,4.61639233]
[1755591436279,2.93,179.93,179.87,2.98]
[1755591436476,148.18448202,179.97,179.87,2.98]
[1755591436477,7.51591074,179.92,179.87,2.98]
[1755591436674,7.51591074,179.91,179.87,2.98]
[1755591436878,2.93,179.91,179.87,2.98]
[1755591437881,2.93,179.9,179.85,4.61639233]
[1755591438186,2.93,179.9,179.84,4.61639233]
[1755591438785,2.93,179.9,179.83,4.61639233]
[1755591441281,2.93,179.9,179.83,7.59639233]
[1755591441477,4.58226467,179.89,179.83,2.98]
[1755591441681,2.93,179.9,179.83,2.98]
[1755591441882,4.58235994,179.89,179.83,2.98]
[1755591442082,2.93,179.9,179.83,2.98]
[1755591442283,4.58237899,179.89,179.83,2.98]
[1755591442488,2.93,179.9,179.83,2.98]
[1755591442684,4.5811191,179.89,179.83,2.98]
[1755591442891,2.93,179.9,179.83,2.98]
[1755591443185,4.5811191,179.89,179.81,8.32227435]
[1755591443388,3.14,179.88,179.81,8.32227435]
[1755591444092,3.14,179.88,179.81,3.70588202]
[1755591444495,3.14,179.88,179.8,4.61639233]
[1755591447096,3.14,179.88,179.81,2.94]
[1755591448700,4.57753958,179.87,179.81,2.94]
[1755591448993,3.14,179.88,179.81,2.94]
[1755591451489,3.14,179.88,179.78,3.70588202]
[1755591451701,3.14,179.86,179.78,6.64588202]
[1755591453700,3.14,179.86,179.78,2.94]
[1755591457502,3.14,179.86,179.75,2.94]
[1755591457907,3.14,179.84,179.75,2.94]
[1755591458801,6.84588202,179.87,179.75,2.94]
[1755591459001,4.5892244,179.86,179.77,2.94]
[1755591459201,4.5892244,179.85,179.77,2.94]
[1755591459409,6.84588202,179.87,179.77,2.94]
[1755591459609,4.58810944,179.86,179.77,2.94]
[1755591459809,6.84588202,179.87,179.77,2.94]
[1755591460010,4.58810944,179.86,179.77,2.94]
[1755591460209,6.84588202,179.87,179.77,2.94]
[1755591460409,4.58743219,179.86,179.77,2.94]
[1755591460604,6.84588202,179.87,179.77,2.94]
[1755591460801,4.58743219,179.86,179.77,2.94]
[1755591461005,3.14,179.87,179.77,2.94]
[1755591463612,3.14,179.85,179.77,2.94]
[1755591464616,3.14,179.89,179.79,2.94]
[1755591465113,3.14,179.89,179.78,3.70588202]
[1755591465114,3.14,179.95,179.82,2.94]
[1755591465311,3.14,179.95,179.78,4.61639233]
[1755591465312,4.58486828,179.94,179.85,2.94]
[1755591465507,3.14,179.95,179.85,2.94]
[1755591465508,4.58486828,179.93,179.85,2.94]
[1755591465708,3.14,179.92,179.85,2.94]
[1755591467009,3.14,179.95,179.85,2.94]
[1755591468912,141.04,179.98,179.9,3.70588202]
[1755591469110,141.04,179.98,179.91,2.94]
[1755591470314,141.04,179.98,179.87,6.64588202]
[1755591470315,3.14,179.97,179.87,6.64588202]
[1755591470909,4.58491253,179.96,179.87,2.94]
[1755591471118,3.14,179.95,179.87,2.94]
[1755591473515,3.14,179.95,179.87,3.70588202]
[1755591473721,140.78,179.98,179.88,2.91]
[1755591474019,4.58586984,179.97,179.88,2.91]
[1755591474317,140.78,179.98,179.88,2.91]
[1755591476222,2.88,179.97,179.88,2.91]
[1755591477417,4.58507275,179.96,179.88,2.91]
[1755591477722,7.4653138,179.95,179.88,2.91]
[1755591478018,2.88,179.95,179.88,2.91]
[1755591479421,2.88,179.95,179.84,6.61588202]
[1755591480420,4.58646544,179.94,179.84,2.91]
[1755591480625,4.58646544,179.94,179.81,8.32227435]
[1755591480626,2.88,179.91,179.8,2.91]
[1755591481624,3.70588202,179.92,179.8,2.91]
[1755591481625,2.88,179.89,179.8,2.91]
[1755591482227,2.88,179.89,179.81,3.70588202]
[1755591482425,2.88,179.89,179.82,2.91]
[1755591482622,2.88,179.89,179.79,2.91]
[1755591483225,4.58825623,179.88,179.81,3.70588202]
[1755591483423,2.88,179.93,179.82,2.91]
[1755591483630,4.58760384,179.92,179.84,3.70588202]
[1755591483932,2.88,179.93,179.85,2.91]
[1755591484925,2.88,179.91,179.85,2.91]
[1755591485631,2.88,179.91,179.82,2.91]
[1755591489036,2.88,179.97,179.82,2.91]
[1755591489234,2.88,179.95,179.82,2.91]
[1755591489536,4.59356774,179.94,179.83,2.91]
[1755591489726,2.88,179.95,179.83,2.91]
[1755591489922,2.88,179.95,179.84,2.91]
[1755591492129,4.59215679,179.94,179.84,2.91]
[1755591492334,2.88,179.93,179.84,2.91]
[1755591493228,2.88,179.91,179.8,2.91]
[1755591496531,2.88,179.91,179.81,2.91]
[1755591501038,2.88,179.91,179.82,2.91]
[1755591501430,2.88,179.91,179.82,8.4688]
[1755591501631,2.88,179.91,179.82,2.91]
[1755591505137,2.88,179.91,179.84,3.7082816]
[1755591505339,2.88,179.91,179.85,3.12]
[1755591510344,2.88,179.91,179.82,4.61639233]
[1755591510550,2.88,179.91,179.83,3.12]
[1755591510751,3.03,179.89,179.83,3.12]
[1755591512659,3.03,179.89,179.8,7.73639233]
[1755591513157,4.60626399,179.88,179.8,3.12]
[1755591513455,7.6368001,179.87,179.8,3.12]
[1755591513654,4.6068001,179.86,179.8,3.12]
[1755591515552,3.03,179.89,179.8,3.12]
[1755591515759,4.61824118,179.88,179.8,3.12]
[1755591516058,4.61824118,179.87,179.8,3.12]
[1755591516256,3.03,179.89,179.8,3.12]
[1755591516555,4.61805787,179.88,179.8,3.12]
[1755591516755,4.61805787,179.87,179.8,3.12]
[1755591516957,3.03,179.89,179.8,3.12]
[1755591517153,4.61805779,179.88,179.8,3.12]
[1755591517358,4.61805779,179.87,179.8,3.12]
[1755591517556,3.03,179.89,179.82,3.12]
[1755591518858,3.03,179.91,179.82,3.12]
[1755591519072,4.61718094,179.9,179.84,6.8282816]
[1755591519257,3.03,179.91,179.84,6.8282816]
[1755591519458,4.61723022,179.9,179.84,6.8282816]
[1755591519757,3.03,179.91,179.84,6.8282816]
[1755591519962,3.03,179.96,179.88,3.12]
[1755591520161,4.61752101,179.95,179.88,3.12]
[1755591520457,4.61752101,179.94,179.88,3.12]
[1755591520656,3.03,179.96,179.88,3.12]
[1755591520855,4.61830133,179.95,179.88,3.12]
[1755591521056,4.61830133,179.94,179.88,3.12]
[1755591521260,137.6,179.97,179.9,3.7082816]
[1755591521455,4.61848315,179.96,179.9,3.7082816]
[1755591521658,137.6,179.97,179.93,3.12]
[1755591521951,3.03,180.01,179.93,6.8282816]
[1755591522153,4.61780922,180.0,179.94,3.12]
[1755591522354,88.24085476,180.04,179.94,3.12]
[1755591522556,4.615055,180.03,179.94,3.12]
[1755591522758,4.615055,180.02,179.94,3.12]
[1755591522958,4.615055,180.01,179.94,3.12]
[1755591523153,3.03,180.03,179.94,3.12]
[1755591523361,3.03,180.01,179.94,3.12]
[1755591523664,88.24085476,180.04,179.94,3.12]
[1755591523861,3.03,180.02,179.94,3.12]
[1755591524061,4.61116041,180.01,179.94,3.12]
[1755591524364,3.03,180.02,179.94,3.12]
[1755591524564,4.60855632,180.01,179.94,3.12]
[1755591524865,3.03,180.02,179.94,3.12]
[1755591526557,85.21085476,180.04,179.94,3.12]
[1755591527759,3.03,180.03,179.94,3.12]
[1755591528569,137.44,180.06,179.94,3.12]
[1755591528961,137.44,180.06,179.96,5.5545]
[1755591529162,137.44,180.06,179.97,3.12]
[1755591532964,3.04,180.05,179.97,3.12]
[1755591536260,3.04,180.05,179.94,3.14]
[1755591540771,3.04,180.05,179.91,8.90133232]
[1755591541773,3.04,180.03,179.87,146.08133232]
[1755591541971,4.57992633,180.02,179.87,146.08133232]
[1755591542271,3.04,180.01,179.87,146.08133232]
[1755591542467,3.04,180.01,179.88,3.14]
[1755591543576,3.04,179.99,179.87,137.18]
[1755591543772,3.04,179.97,179.84,3.14]
[1755591543983,3.04,180.0,179.84,3.14]
[1755591544278,0.96710993,180.06,179.89,3.70505051]
[1755591544279,3.04,179.98,179.89,3.70505051]
[1755591544474,3.04,179.98,179.89,6.84505051]
[1755591544669,3.04,179.98,179.9,3.14]
[1755591544871,3.04,179.98,179.92,3.70505051]
[1755591545368,3.04,180.05,179.93,3.14]
[1755591545570,3.04,180.03,179.93,3.14]
[1755591548473,3.04,180.03,179.96,3.14]
[1755591548676,3.04,180.03,179.93,3.14]
[1755591549879,138.02,180.05,179.96,3.14]
[1755591557186,3.04,180.04,179.96,3.14]
[1755591561084,3.04,180.04,179.95,3.70505051]
[1755591561384,3.04,180.02,179.93,3.14]
[1755591561782,3.04,180.0,179.93,3.14]
[1755591562690,140.66,180.02,179.93,3.14]
[1755591563690,137.74,180.02,179.93,3.14]
[1755591563890,2.92,180.01,179.93,3.14]
[1755591565286,4.59600493,180.0,179.9,7.51606556]
[1755591565486,2.92,179.99,179.9,7.51606556]
[1755591566284,4.59778765,179.98,179.9,7.51606556]
[1755591566485,4.59829009,179.97,179.9,2.89]
[1755591566780,2.92,180.0,179.9,2.89]
[1755591566979,2.92,179.98,179.9,2.89]
[1755591567186,4.59829178,179.97,179.9,2.89]
[1755591569097,3.70505051,180.04,179.92,3.70505051]
[1755591569398,2.92,180.02,179.95,3.70505051]
[1755591569699,4.59682682,180.01,179.95,3.70505051]
[1755591569897,2.92,180.02,179.95,6.59505051]
[1755591570096,4.59623115,180.01,179.95,6.59505051]
[1755591570289,2.92,180.02,179.95,6.59505051]
[1755591570496,4.59625164,180.01,179.95,6.59505051]
[1755591570694,2.92,180.02,179.95,6.59505051]
[1755591570994,4.59625165,180.01,179.95,3.70505051]
[1755591571191,2.92,180.02,179.95,6.59505051]
[1755591571392,4.59600896,180.01,179.95,6.59505051]
[1755591571684,2.92,180.02,179.95,6.59505051]
[1755591571887,4.59622154,180.01,179.95,6.59505051]
[1755591572086,2.92,180.02,179.95,6.59505051]
[1755591574894,4.59670274,180.01,179.92,8.33111607]
[1755591575097,2.92,180.02,179.92,8.33111607]
[1755591575296,2.92,180.0,179.92,3.70505051]
[1755591575493,2.92,179.98,179.91,2.89]
[1755591577897,2.92,179.96,179.88,7.51606556]
[1755591578096,2.92,179.96,179.88,2.89]
[1755591578902,4.6001727,179.95,179.88,2.89]
[1755591579107,2.92,179.94,179.88,2.89]
[1755591580204,2.92,179.94,179.86,3.70505051]
[1755591581807,4.59800986,179.93,179.85,2.89]
[1755591582007,7.51800986,179.92,179.85,2.89]
[1755591582310,2.92,179.92,179.85,2.89]
[1755591583107,2.92,179.97,179.87,2.89]
[1755591583507,2.92,179.95,179.86,3.70505051]
[1755591583708,2.92,179.93,179.86,3.70505051]
[1755591583908,2.92,179.93,179.87,2.89]
[1755591586605,2.92,179.97,179.87,2.89]
[1755591587003,2.92,179.97,179.9,2.89]
[1755591588111,2.92,179.97,179.87,2.89]
[1755591588411,137.7,180.03,179.87,2.89]
[1755591588412,2.92,179.95,179.87,2.89]
[1755591590004,6.62505051,179.95,179.84,2.89]
[1755591590205,2.92,179.94,179.84,2.89]
[1755591592017,3.70505051,179.95,179.83,3.70505051]
[1755591592018,2.92,179.92,179.83,3.70505051]
[1755591592418,2.92,179.92,179.81,2.89]
[1755591595925,2.92,179.92,179.84,3.08]
[1755591598628,2.92,179.92,179.81,3.08]
[1755591599327,3.08,179.91,179.81,3.08]
[1755591600227,3.08,179.91,179.79,3.70505051]
[1755591600627,3.08,179.88,179.78,3.08]
[1755591601722,3.08,179.88,179.79,3.70505051]
[1755591601928,3.08,179.88,179.8,3.08]
[1755591610727,3.08,179.88,179.77,4.62606556]
[1755591610931,3.08,179.88,179.76,11.41111607]
[1755591611231,3.08,179.88,179.76,6.78505051]
[1755591612233,3.08,179.88,179.77,3.08]
[1755591614535,3.08,179.88,179.8,3.08]
[1755591615933,3.08,179.88,179.76,6.78505051]
[1755591616438,3.08,179.86,179.76,6.78505051]
[1755591619132,3.08,179.86,179.79,3.70505051]
[1755591619333,3.08,179.86,179.8,3.08]
[1755591619637,3.08,179.92,179.82,3.70505051]
[1755591619833,3.70505051,179.93,179.82,3.70505051]
[1755591619834,3.08,179.9,179.82,3.70505051]
[1755591620341,4.60073921,179.89,179.82,3.70505051]
[1755591620539,3.08,179.9,179.83,3.08]
[1755591620728,4.60099727,179.89,179.83,3.08]
[1755591620928,3.08,179.9,179.83,3.08]
[1755591621238,4.60099727,179.89,179.83,3.08]
[1755591621540,3.08,179.9,179.83,3.08]
[1755591621837,3.08,179.9,179.79,4.62606556]
[1755591621838,511.02,179.94,179.86,3.08]
[1755591622035,4.60217631,179.93,179.86,3.08]
[1755591622233,511.02,179.94,179.86,3.08]
[1755591622433,137.48,179.94,179.88,3.70505051]
[1755591622736,137.48,179.94,179.91,3.01]
[1755591623039,137.48,179.94,179.86,3.01]
[1755591623838,2.97,179.93,179.86,3.01]
[1755591624035,4.60410704,179.92,179.83,3.01]
[1755591624240,2.97,179.91,179.83,3.01]
[1755591625336,3.70505051,179.93,179.8,4.62606556]
[1755591625337,2.97,179.89,179.8,4.62606556]
[1755591625739,4.60615068,179.88,179.79,6.71505051]
[1755591626036,7.57615068,179.87,179.79,3.01]
[1755591626233,2.97,179.85,179.75,7.63606556]
[1755591626431,4.60660401,179.84,179.75,7.63606556]
[1755591626634,2.97,179.85,179.76,6.71505051]
[1755591627937,2.97,179.89,179.79,3.70505051]
[1755591628142,2.97,179.87,179.79,3.01]
[1755591628339,4.60625972,179.86,179.79,3.01]
[1755591628839,2.97,179.87,179.79,6.71505051]
[1755591629039,3.70505051,179.93,179.8,3.01]
[1755591629040,2.97,179.92,179.8,3.01]
[1755591629232,7.27099446,179.91,179.8,3.01]
[1755591629436,4.60595718,179.9,179.8,7.63606556]
[1755591629636,2.97,179.92,179.8,7.63606556]
[1755591629836,2.97,179.9,179.8,7.63606556]
[1755591630135,2.97,179.88,179.8,3.01]
[1755591630339,4.60695131,179.87,179.8,3.01]
[1755591630641,2.97,179.88,179.8,3.01]
[1755591630843,4.60695131,179.87,179.8,3.01]
[1755591631031,2.97,179.88,179.8,3.01]
[1755591631237,4.60695131,179.87,179.8,3.01]
[1755591631545,2.97,179.88,179.8,3.01]
[1755591631741,4.60758869,179.87,179.8,3.01]
[1755591632042,2.97,179.88,179.8,3.01]
[1755591632239,4.60758869,179.87,179.8,3.01]
[1755591632444,2.97,179.88,179.8,3.01]
[1755591632637,4.60978235,179.87,179.8,3.01]
[1755591632837,2.97,179.88,179.8,3.01]
[1755591633038,4.60978235,179.87,179.8,3.01]
[1755591633239,2.97,179.88,179.8,3.01]
[1755591633445,4.6099316,179.87,179.8,3.01]
[1755591633642,2.97,179.88,179.8,3.01]
[1755591633843,4.61106433,179.87,179.8,3.01]
[1755591634043,2.97,179.88,179.8,3.01]
[1755591634244,4.61106433,179.87,179.8,3.01]
[1755591634445,2.97,179.88,179.8,3.01]
[1755591634645,4.61254885,179.87,179.8,3.01]
[1755591634842,2.97,179.88,179.8,3.01]
[1755591635144,4.61254885,179.87,179.8,3.01]
[1755591635345,4.61274996,179.86,179.78,4.62606556]
[1755591635642,2.97,179.85,179.78,4.62606556]
[1755591636942,2.97,179.85,179.77,3.01]
[1755591637149,4.63201518,179.84,179.77,3.01]
[1755591637348,4.63201518,179.83,179.77,3.01]
[1755591637547,2.97,179.82,179.75,4.62606556]
[1755591639353,2.97,179.82,179.74,4.62606556]
[1755591639959,2.97,179.82,179.73,6.71505051]
[1755591639960,2.97,179.8,179.73,3.01]
[1755591640261,2.97,179.8,179.71,4.62606556]
[1755591640656,2.97,179.8,179.72,3.01]
[1755591641553,2.97,179.84,179.74,3.01]
[1755591641750,4.6271344,179.83,179.74,4.62606556]
[1755591641950,2.97,179.84,179.75,3.01]
[1755591642160,2.97,179.84,179.77,3.01]
[1755591643160,2.97,179.89,179.77,3.01]
[1755591643460,4.62651653,179.88,179.77,3.01]
[1755591643664,2.97,179.86,179.77,3.01]
[1755591643961,4.62651653,179.85,179.77,3.01]
[1755591644163,2.97,179.86,179.77,4.62606556]
[1755591644364,2.97,179.86,179.78,3.01]
[1755591644865,3.70505051,179.9,179.77,4.62606556]
[1755591644866,2.97,179.9,179.8,3.01]
[1755591645066,4.62637434,179.89,179.8,3.01]
[1755591645366,4.62637434,179.88,179.8,3.01]
[1755591645557,2.97,179.9,179.83,3.01]
[1755591645762,4.62621274,179.89,179.83,3.01]
[1755591645959,6.2186,179.95,179.85,3.01]
[1755591645960,2.97,179.94,179.85,3.01]
[1755591646168,4.62560596,179.93,179.85,6.71505051]
[1755591646361,2.97,179.94,179.88,3.70505051]
[1755591647268,2.97,179.94,179.86,3.01]
[1755591651771,2.97,179.94,179.83,8.33111607]
[1755591651967,2.97,179.94,179.83,3.70505051]
[1755591652166,2.97,179.94,179.84,3.01]
[1755591652366,2.97,179.94,179.84,4.62606556]
[1755591652569,373.6,179.98,179.9,3.06]
[1755591652970,2.94,179.97,179.9,3.06]
[1755591655275,2.94,179.97,179.88,5.76242958]